[Event "Titled Tuesday Blitz May 4 2021"]
[White "Isajevsky, Anton"]
[Black "Maly, Alexey"]
[WhiteFideId "4142500"]
[BlackFideId "14103184"]
[WhiteElo "2510"]
[BlackElo "2314"]
[Result "1-0"]
[Round "02"]
[TimeControl "180+1"]
[Date "2021.05.04"]
[WhiteClock "0:00:11"]
[BlackClock "0:01:20"]

1. c4 {[%clk 0:02:58]}  c5 {[%clk 0:02:59]} 2. Nc3 {[%clk 0:02:43]}  Nc6 {[%clk 0:02:58]} 3. Nf3 {[%clk 0:02:39]}  g6 {[%clk 0:02:58]} 4. e3 {[%clk 0:02:39]}  Nf6 {[%clk 0:02:59]} 5. d4 {[%clk 0:02:37]}  cxd4 {[%clk 0:02:59]} 6. exd4 {[%clk 0:02:38]}  d5 {[%clk 0:03:00]} 7. Bg5 {[%clk 0:02:39]}  Ne4 {[%clk 0:02:59]} 8. cxd5 {[%clk 0:02:38]}  Nxc3 {[%clk 0:02:58]} 9. bxc3 {[%clk 0:02:38]}  Qxd5 {[%clk 0:02:59]} 10. Qb3 {[%clk 0:02:38]}  Qxb3 {[%clk 0:02:52]} 11. axb3 {[%clk 0:02:38]}  Bg7 {[%clk 0:02:52]} 12. Bb5 {[%clk 0:02:08]}  O-O {[%clk 0:02:51]} 13. O-O {[%clk 0:02:07]}  e6 {[%clk 0:02:49]} 14. Bxc6 {[%clk 0:01:56]}  bxc6 {[%clk 0:02:47]} 15. Be7 {[%clk 0:01:56]}  Re8 {[%clk 0:02:47]} 16. Bc5 {[%clk 0:01:57]}  a6 {[%clk 0:02:44]} 17. b4 {[%clk 0:01:54]}  f6 {[%clk 0:02:41]} 18. Nd2 {[%clk 0:01:47]}  Kf7 {[%clk 0:02:39]} 19. Nc4 {[%clk 0:01:47]}  Rd8 {[%clk 0:02:34]} 20. Nb6 {[%clk 0:01:40]}  Rb8 {[%clk 0:02:33]} 21. Nxc8 {[%clk 0:01:40]}  Rdxc8 {[%clk 0:02:32]} 22. Rxa6 {[%clk 0:01:40]}  Rb7 {[%clk 0:02:33]} 23. Rfa1 {[%clk 0:01:40]}  Rcc7 {[%clk 0:02:32]} 24. Kf1 {[%clk 0:01:37]}  e5 {[%clk 0:02:29]} 25. dxe5 {[%clk 0:01:37]}  fxe5 {[%clk 0:02:29]} 26. Ke2 {[%clk 0:01:37]}  Ke6 {[%clk 0:02:29]} 27. Kd3 {[%clk 0:01:33]}  Kd5 {[%clk 0:02:24]} 28. c4+ {[%clk 0:01:32]}  Ke6 {[%clk 0:02:23]} 29. Ke4 {[%clk 0:01:27]}  Kf7 {[%clk 0:02:09]} 30. Rb6 {[%clk 0:01:10]}  Rxb6 {[%clk 0:02:04]} 31. Bxb6 {[%clk 0:01:10]}  Rd7 {[%clk 0:02:04]} 32. Ra7 {[%clk 0:01:06]}  Rxa7 {[%clk 0:02:00]} 33. Bxa7 {[%clk 0:01:07]}  Ke6 {[%clk 0:02:01]} 34. b5 {[%clk 0:01:04]}  cxb5 {[%clk 0:02:01]} 35. cxb5 {[%clk 0:01:04]}  Kd6 {[%clk 0:01:57]} 36. g4 {[%clk 0:00:51]}  Bh6 {[%clk 0:01:57]} 37. Be3 {[%clk 0:00:49]}  Bf8 {[%clk 0:01:54]} 38. h4 {[%clk 0:00:36]}  h5 {[%clk 0:01:49]} 39. gxh5 {[%clk 0:00:35]}  gxh5 {[%clk 0:01:49]} 40. Kf5 {[%clk 0:00:35]}  Be7 {[%clk 0:01:45]} 41. Bg5 {[%clk 0:00:35]}  Bf8 {[%clk 0:01:45]} 42. Kg6 {[%clk 0:00:33]}  Ke6 {[%clk 0:01:43]} 43. b6 {[%clk 0:00:30]}  Bd6 {[%clk 0:01:41]} 44. Kxh5 {[%clk 0:00:24]}  Kf5 {[%clk 0:01:42]} 45. Kh6 {[%clk 0:00:24]}  e4 {[%clk 0:01:39]} 46. b7 {[%clk 0:00:17]}  Kg4 {[%clk 0:01:34]} 47. h5 {[%clk 0:00:16]}  Kf5 {[%clk 0:01:30]} 48. Be3 {[%clk 0:00:16]}  Bb8 {[%clk 0:01:26]} 49. Kg7 {[%clk 0:00:15]}  Be5+ {[%clk 0:01:26]} 50. Kf7 {[%clk 0:00:15]}  Bb8 {[%clk 0:01:24]} 51. h6 {[%clk 0:00:15]}  Be5 {[%clk 0:01:24]} 52. h7 {[%clk 0:00:16]}  Kg4 {[%clk 0:01:24]} 53. b8=Q {[%clk 0:00:14]}  Bxb8 {[%clk 0:01:24]} 54. h8=Q {[%clk 0:00:14]}  Bc7 {[%clk 0:01:23]} 55. Ke6 {[%clk 0:00:14]}  Kf3 {[%clk 0:01:22]} 56. Kd5 {[%clk 0:00:14]}  Ba5 {[%clk 0:01:20]} 57. Qf6+ {[%clk 0:00:14]}  Ke2 {[%clk 0:01:20]} 58. Kxe4 {[%clk 0:00:14]}  Be1 {[%clk 0:01:20]} 59. Qb2+ {[%clk 0:00:14]}  Kf1 {[%clk 0:01:20]} 60. Qc1 {[%clk 0:00:12]}  Ke2 {[%clk 0:01:20]} 61. Qc2+ {[%clk 0:00:12]}  Kf1 {[%clk 0:01:20]} 62. Kf3 {[%clk 0:00:12]}  Kg1 {[%clk 0:01:20]} 63. Qd1 {[%clk 0:00:11]}  Kh2 {[%clk 0:01:20]} 64. Qxe1 {[%clk 0:00:11]}  Kh3 {[%clk 0:01:20]} 65. Qh1# {[%clk 0:00:11]} 1-0


[Site "https://www.chess.com"]

[Event "Titled Tuesday Blitz May 4 2021"]
[White "Ivanov, Mike"]
[Black "Kiseljova, Marya"]
[WhiteFideId "2613158"]
[BlackFideId "4155009"]
[WhiteElo "2197"]
[BlackElo "1797"]
[Result "1-0"]
[Round "02"]
[TimeControl "180+1"]
[Date "2021.05.04"]
[WhiteClock "0:00:12"]
[BlackClock "0:00:01"]

1. e4 {[%clk 0:03:00]}  c5 {[%clk 0:03:00]} 2. Nf3 {[%clk 0:03:01]}  Nc6 {[%clk 0:03:00]} 3. Bb5 {[%clk 0:03:00]}  g6 {[%clk 0:02:59]} 4. O-O {[%clk 0:02:59]}  Bg7 {[%clk 0:02:59]} 5. Re1 {[%clk 0:02:59]}  Nd4 {[%clk 0:02:55]} 6. Nxd4 {[%clk 0:02:57]}  cxd4 {[%clk 0:02:50]} 7. c3 {[%clk 0:02:57]}  a6 {[%clk 0:02:46]} 8. Ba4 {[%clk 0:02:51]}  b5 {[%clk 0:02:39]} 9. Bb3 {[%clk 0:02:51]}  e6 {[%clk 0:02:35]} 10. cxd4 {[%clk 0:02:49]}  Bxd4 {[%clk 0:02:35]} 11. Nc3 {[%clk 0:02:49]}  Qb6 {[%clk 0:02:30]} 12. Qe2 {[%clk 0:02:46]}  Ne7 {[%clk 0:02:23]} 13. d3 {[%clk 0:02:44]}  Bb7 {[%clk 0:02:20]} 14. Bh6 {[%clk 0:02:27]}  a5 {[%clk 0:02:07]} 15. a4 {[%clk 0:02:06]}  b4 {[%clk 0:02:05]} 16. Nb5 {[%clk 0:02:05]}  Ba6 {[%clk 0:01:54]} 17. e5 {[%clk 0:01:42]}  Bxb5 {[%clk 0:01:49]} 18. axb5 {[%clk 0:01:43]}  Nf5 {[%clk 0:01:42]} 19. Bg5 {[%clk 0:01:43]}  Qxb5 {[%clk 0:01:32]} 20. g4 {[%clk 0:01:29]}  Ne7 {[%clk 0:01:27]} 21. Qe4 {[%clk 0:01:27]}  Nc6 {[%clk 0:01:27]} 22. Ba4 {[%clk 0:01:25]}  Qd5 {[%clk 0:01:24]} 23. Bxc6 {[%clk 0:01:11]}  dxc6 {[%clk 0:01:20]} 24. Qf4 {[%clk 0:01:10]}  Rg8 {[%clk 0:00:34]} 25. Qf6 {[%clk 0:00:58]}  Ra7 {[%clk 0:00:33]} 26. Rac1 {[%clk 0:00:53]}  Bb6 {[%clk 0:00:15]} 27. Rc2 {[%clk 0:00:39]}  Bd8 {[%clk 0:00:15]} 28. Qf4 {[%clk 0:00:38]}  Bxg5 {[%clk 0:00:15]} 29. Qxg5 {[%clk 0:00:39]}  Rd7 {[%clk 0:00:12]} 30. Rec1 {[%clk 0:00:36]}  Rc7 {[%clk 0:00:06]} 31. Rc5 {[%clk 0:00:32]}  Qxd3 {[%clk 0:00:06]} 32. Rxa5 {[%clk 0:00:32]}  Kd7 {[%clk 0:00:02]} 33. Raa1 {[%clk 0:00:25]}  Kc8 {[%clk 0:00:01]} 34. Ra8+ {[%clk 0:00:23]}  Kb7 {[%clk 0:00:02]} 35. Rxg8 {[%clk 0:00:23]}  Qd4 {[%clk 0:00:01]} 36. h3 {[%clk 0:00:15]}  Qxb2 {[%clk 0:00:01]} 37. Rd1 {[%clk 0:00:12]} 1-0


[Site "https://www.chess.com"]

[Event "Titled Tuesday Blitz May 4 2021"]
[White "Izoria, Zviad"]
[Black "Chitlange Sakshi"]
[WhiteFideId "13601733"]
[BlackFideId "35002899"]
[WhiteElo "2626"]
[BlackElo "1787"]
[Result "1-0"]
[Round "02"]
[TimeControl "180+1"]
[Date "2021.05.04"]
[WhiteClock "0:01:24"]
[BlackClock "0:00:03"]

1. Nf3 {[%clk 0:03:00]}  d5 {[%clk 0:02:59]} 2. e3 {[%clk 0:02:58]}  Nf6 {[%clk 0:02:59]} 3. c4 {[%clk 0:02:58]}  e6 {[%clk 0:02:57]} 4. b3 {[%clk 0:02:56]}  Be7 {[%clk 0:02:57]} 5. Bb2 {[%clk 0:02:57]}  O-O {[%clk 0:02:56]} 6. Nc3 {[%clk 0:02:57]}  c5 {[%clk 0:02:55]} 7. cxd5 {[%clk 0:02:57]}  Nxd5 {[%clk 0:02:54]} 8. h4 {[%clk 0:02:54]}  Bf6 {[%clk 0:02:50]} 9. Qc2 {[%clk 0:02:47]}  Nxc3 {[%clk 0:02:17]} 10. dxc3 {[%clk 0:02:37]}  e5 {[%clk 0:01:58]} 11. Bd3 {[%clk 0:02:29]}  h6 {[%clk 0:01:53]} 12. O-O-O {[%clk 0:02:28]}  Qc7 {[%clk 0:01:41]} 13. Ng5 {[%clk 0:02:18]}  a5 {[%clk 0:01:27]} 14. Bc4 {[%clk 0:01:45]}  e4 {[%clk 0:00:24]} 15. Qxe4 {[%clk 0:01:41]}  Rd8 {[%clk 0:00:05]} 16. Rxd8+ {[%clk 0:01:24]}  Qxd8 {[%clk 0:00:03]} 17. Nxf7 {[%clk 0:01:24]} 1-0


[Site "https://www.chess.com"]

[Event "Titled Tuesday Blitz May 4 2021"]
[White "Kaminski, Victor"]
[Black "Amarasinghe, A A C B"]
[WhiteFideId "1131630"]
[BlackFideId "9901809"]
[WhiteElo "2181"]
[BlackElo "1778"]
[Result "1-0"]
[Round "02"]
[TimeControl "180+1"]
[Date "2021.05.04"]
[WhiteClock "0:02:02"]
[BlackClock "0:00:57"]

1. e4 {[%clk 0:03:00]}  c5 {[%clk 0:03:00]} 2. Nf3 {[%clk 0:02:59]}  Nc6 {[%clk 0:03:00]} 3. Bb5 {[%clk 0:02:57]}  g6 {[%clk 0:02:59]} 4. O-O {[%clk 0:02:55]}  Bg7 {[%clk 0:02:59]} 5. c3 {[%clk 0:02:55]}  Nf6 {[%clk 0:02:57]} 6. Re1 {[%clk 0:02:54]}  O-O {[%clk 0:02:56]} 7. e5 {[%clk 0:02:54]}  Nd5 {[%clk 0:02:55]} 8. d4 {[%clk 0:02:54]}  cxd4 {[%clk 0:02:55]} 9. cxd4 {[%clk 0:02:55]}  d6 {[%clk 0:02:53]} 10. exd6 {[%clk 0:02:49]}  Qxd6 {[%clk 0:02:52]} 11. Nc3 {[%clk 0:02:50]}  Nxc3 {[%clk 0:02:42]} 12. bxc3 {[%clk 0:02:50]}  Bf5 {[%clk 0:02:37]} 13. a4 {[%clk 0:02:45]}  a6 {[%clk 0:02:28]} 14. Ba3 {[%clk 0:02:44]}  Qc7 {[%clk 0:02:26]} 15. Bxc6 {[%clk 0:02:40]}  Qxc6 {[%clk 0:02:26]} 16. Bxe7 {[%clk 0:02:40]}  Rfe8 {[%clk 0:02:20]} 17. Rc1 {[%clk 0:02:35]}  Bg4 {[%clk 0:02:13]} 18. h3 {[%clk 0:02:30]}  Bxf3 {[%clk 0:02:07]} 19. Qxf3 {[%clk 0:02:31]}  Qxf3 {[%clk 0:02:03]} 20. gxf3 {[%clk 0:02:32]}  Rac8 {[%clk 0:02:02]} 21. d5 {[%clk 0:02:27]}  Bxc3 {[%clk 0:01:55]} 22. Re3 {[%clk 0:02:21]}  Bd4 {[%clk 0:01:24]} 23. Rxc8 {[%clk 0:02:18]}  Rxc8 {[%clk 0:01:23]} 24. Rd3 {[%clk 0:02:19]}  Bc5 {[%clk 0:01:19]} 25. d6 {[%clk 0:02:09]}  Ra8 {[%clk 0:01:10]} 26. Bf6 {[%clk 0:02:07]}  Bb6 {[%clk 0:00:59]} 27. d7 {[%clk 0:02:03]}  Bd8 {[%clk 0:00:58]} 28. Re3 {[%clk 0:02:03]}  Bxf6 {[%clk 0:00:57]} 29. Re8+ {[%clk 0:02:02]}  Kg7 {[%clk 0:00:57]} 1-0


[Site "https://www.chess.com"]

[Event "Titled Tuesday Blitz May 4 2021"]
[White "Kokoszczynski, Jan"]
[Black "Banawa, Joel"]
[WhiteFideId "1174460"]
[BlackFideId "2024055"]
[WhiteElo "2166"]
[BlackElo "2668"]
[Result "0-1"]
[Round "02"]
[TimeControl "180+1"]
[Date "2021.05.04"]
[WhiteClock "0:00:11"]
[BlackClock "0:00:42"]

1. d4 {[%clk 0:03:00]}  Nf6 {[%clk 0:03:00]} 2. c4 {[%clk 0:03:00]}  g6 {[%clk 0:03:00]} 3. Nc3 {[%clk 0:02:59]}  Bg7 {[%clk 0:03:01]} 4. Nf3 {[%clk 0:02:59]}  O-O {[%clk 0:03:02]} 5. g3 {[%clk 0:03:00]}  d6 {[%clk 0:03:03]} 6. Bg2 {[%clk 0:03:00]}  Nc6 {[%clk 0:03:04]} 7. O-O {[%clk 0:03:01]}  Bg4 {[%clk 0:03:04]} 8. h3 {[%clk 0:02:56]}  Bxf3 {[%clk 0:03:04]} 9. Bxf3 {[%clk 0:02:56]}  Nd7 {[%clk 0:03:05]} 10. e3 {[%clk 0:02:51]}  e5 {[%clk 0:03:06]} 11. d5 {[%clk 0:02:50]}  Ne7 {[%clk 0:02:53]} 12. e4 {[%clk 0:02:50]}  f5 {[%clk 0:02:52]} 13. h4 {[%clk 0:02:50]}  Nf6 {[%clk 0:02:46]} 14. Kg2 {[%clk 0:02:39]}  c6 {[%clk 0:02:45]} 15. h5 {[%clk 0:02:34]}  cxd5 {[%clk 0:02:34]} 16. cxd5 {[%clk 0:02:35]}  b5 {[%clk 0:02:21]} 17. a3 {[%clk 0:02:05]}  a5 {[%clk 0:02:18]} 18. Bg5 {[%clk 0:01:57]}  b4 {[%clk 0:02:17]} 19. axb4 {[%clk 0:01:57]}  axb4 {[%clk 0:02:17]} 20. Rxa8 {[%clk 0:01:58]}  Qxa8 {[%clk 0:02:17]} 21. Nb5 {[%clk 0:01:37]}  fxe4 {[%clk 0:02:15]} 22. Bxe4 {[%clk 0:01:36]}  Qb8 {[%clk 0:01:23]} 23. Bxf6 {[%clk 0:01:11]}  Bxf6 {[%clk 0:01:23]} 24. Qd3 {[%clk 0:01:02]}  Kg7 {[%clk 0:01:10]} 25. Rc1 {[%clk 0:00:43]}  Bg5 {[%clk 0:01:07]} 26. Rc7 {[%clk 0:00:36]}  Qb6 {[%clk 0:01:07]} 27. f3 {[%clk 0:00:32]}  Rc8 {[%clk 0:01:02]} 28. Rxc8 {[%clk 0:00:20]}  Nxc8 {[%clk 0:01:03]} 29. Qc4 {[%clk 0:00:21]}  Ne7 {[%clk 0:00:50]} 30. hxg6 {[%clk 0:00:20]}  hxg6 {[%clk 0:00:49]} 31. Qc7 {[%clk 0:00:17]}  Qxb5 {[%clk 0:00:48]} 32. Qxd6 {[%clk 0:00:17]}  Qe2+ {[%clk 0:00:44]} 33. Kh3 {[%clk 0:00:17]}  Qf1+ {[%clk 0:00:44]} 34. Kg4 {[%clk 0:00:18]}  Bf6 {[%clk 0:00:44]} 35. Qe6 {[%clk 0:00:17]}  Qh1 {[%clk 0:00:42]} 36. Bxg6 {[%clk 0:00:11]}  Kxg6 {[%clk 0:00:42]} 0-1


[Site "https://www.chess.com"]

[Event "Titled Tuesday Blitz May 4 2021"]
[White "Kopjonkin, Kirill"]
[Black "Bugayev, Vladimir"]
[WhiteFideId "24140090"]
[BlackFideId "30901480"]
[WhiteElo "2224"]
[BlackElo "2334"]
[Result "1-0"]
[Round "02"]
[TimeControl "180+1"]
[Date "2021.05.04"]
[WhiteClock "0:01:55"]
[BlackClock "0:01:35"]

1. e4 {[%clk 0:03:00]}  c6 {[%clk 0:02:59]} 2. d4 {[%clk 0:03:00]}  d5 {[%clk 0:03:00]} 3. Nc3 {[%clk 0:03:01]}  dxe4 {[%clk 0:03:00]} 4. Nxe4 {[%clk 0:03:02]}  Nf6 {[%clk 0:03:00]} 5. Nxf6+ {[%clk 0:02:59]}  exf6 {[%clk 0:03:01]} 6. c3 {[%clk 0:03:00]}  Bd6 {[%clk 0:03:01]} 7. Bd3 {[%clk 0:03:00]}  O-O {[%clk 0:03:02]} 8. Qc2 {[%clk 0:03:01]}  Re8+ {[%clk 0:03:02]} 9. Ne2 {[%clk 0:03:02]}  h5 {[%clk 0:03:03]} 10. O-O {[%clk 0:03:01]}  h4 {[%clk 0:03:02]} 11. h3 {[%clk 0:03:02]}  Nd7 {[%clk 0:02:55]} 12. Bf4 {[%clk 0:02:52]}  Rxe2 {[%clk 0:02:33]} 13. Qxe2 {[%clk 0:02:53]}  Bxf4 {[%clk 0:02:33]} 14. Qe4 {[%clk 0:02:54]}  Bh6 {[%clk 0:02:18]} 15. Qh7+ {[%clk 0:02:47]}  Kf8 {[%clk 0:02:18]} 16. Rae1 {[%clk 0:02:20]}  Ne5 {[%clk 0:02:17]} 17. dxe5 {[%clk 0:02:18]}  f5 {[%clk 0:02:16]} 18. Bxf5 {[%clk 0:02:12]}  Bxf5 {[%clk 0:02:16]} 19. Qxf5 {[%clk 0:02:13]}  Qa5 {[%clk 0:01:56]} 20. a3 {[%clk 0:02:08]}  Re8 {[%clk 0:01:53]} 21. Re2 {[%clk 0:02:04]}  g6 {[%clk 0:01:44]} 22. Qf6 {[%clk 0:01:59]}  Bg7 {[%clk 0:01:43]} 23. Qxh4 {[%clk 0:01:58]}  Rxe5 {[%clk 0:01:38]} 24. Rxe5 {[%clk 0:01:56]}  Bxe5 {[%clk 0:01:36]} 25. Qb4+ {[%clk 0:01:54]}  Qxb4 {[%clk 0:01:35]} 26. axb4 {[%clk 0:01:55]} 1-0


[Site "https://www.chess.com"]

[Event "Titled Tuesday Blitz May 4 2021"]
[White "Korchagina, Alena"]
[Black "Silva, Kaua Marques"]
[WhiteFideId "24173452"]
[BlackFideId "22701168"]
[WhiteElo "1919"]
[BlackElo "2013"]
[Result "0-1"]
[Round "02"]
[TimeControl "180+1"]
[Date "2021.05.04"]
[WhiteClock "0:00:02"]
[BlackClock "0:01:29"]

1. Nf3 {[%clk 0:01:32]}  c5 {[%clk 0:02:59]} 2. c4 {[%clk 0:01:31]}  Nc6 {[%clk 0:02:54]} 3. Nc3 {[%clk 0:01:29]}  e5 {[%clk 0:02:54]} 4. d3 {[%clk 0:01:26]}  g6 {[%clk 0:02:52]} 5. g3 {[%clk 0:01:25]}  Bg7 {[%clk 0:02:53]} 6. Bg2 {[%clk 0:01:25]}  d6 {[%clk 0:02:52]} 7. O-O {[%clk 0:01:25]}  Nge7 {[%clk 0:02:52]} 8. e4 {[%clk 0:01:23]}  O-O {[%clk 0:02:50]} 9. Ne1 {[%clk 0:01:21]}  f5 {[%clk 0:02:50]} 10. Nc2 {[%clk 0:01:09]}  f4 {[%clk 0:02:46]} 11. f3 {[%clk 0:01:08]}  g5 {[%clk 0:02:43]} 12. g4 {[%clk 0:00:59]}  Ng6 {[%clk 0:02:42]} 13. Rb1 {[%clk 0:00:53]}  a5 {[%clk 0:02:37]} 14. b3 {[%clk 0:00:52]}  Nh4 {[%clk 0:02:26]} 15. a3 {[%clk 0:00:50]}  h5 {[%clk 0:02:19]} 16. h3 {[%clk 0:00:43]}  Be6 {[%clk 0:02:10]} 17. Nd5 {[%clk 0:00:38]}  Ne7 {[%clk 0:02:05]} 18. b4 {[%clk 0:00:35]}  Nxd5 {[%clk 0:02:03]} 19. exd5 {[%clk 0:00:25]}  Bd7 {[%clk 0:02:03]} 20. bxc5 {[%clk 0:00:23]}  dxc5 {[%clk 0:02:02]} 21. Bd2 {[%clk 0:00:20]}  b6 {[%clk 0:02:02]} 22. Bc3 {[%clk 0:00:17]}  Ba4 {[%clk 0:01:55]} 23. Qe2 {[%clk 0:00:16]}  Re8 {[%clk 0:01:55]} 24. Rfe1 {[%clk 0:00:14]}  Qd6 {[%clk 0:01:55]} 25. Rb2 {[%clk 0:00:13]}  b5 {[%clk 0:01:55]} 26. Qe4 {[%clk 0:00:10]}  b4 {[%clk 0:01:55]} 27. axb4 {[%clk 0:00:09]}  axb4 {[%clk 0:01:56]} 28. Bd2 {[%clk 0:00:09]}  Bxc2 {[%clk 0:01:47]} 29. Rxc2 {[%clk 0:00:09]}  Ra3 {[%clk 0:01:48]} 30. gxh5 {[%clk 0:00:07]}  b3 {[%clk 0:01:40]} 31. Rb2 {[%clk 0:00:06]}  Rb8 {[%clk 0:01:40]} 32. Bc3 {[%clk 0:00:04]}  Ra2 {[%clk 0:01:37]} 33. Reb1 {[%clk 0:00:02]}  Bf6 {[%clk 0:01:29]} 0-1


[Site "https://www.chess.com"]

[Event "Titled Tuesday Blitz May 4 2021"]
[White "Kovalev, Egor"]
[Black "Lamaze, Simon"]
[WhiteFideId "24124117"]
[BlackFideId "36069264"]
[WhiteElo "2253"]
[BlackElo "1938"]
[Result "0-1"]
[Round "02"]
[TimeControl "180+1"]
[Date "2021.05.04"]
[WhiteClock "0:00:05"]
[BlackClock "0:00:05"]

1. e4 {[%clk 0:03:00]}  c5 {[%clk 0:02:57]} 2. Nf3 {[%clk 0:03:00]}  Nc6 {[%clk 0:02:57]} 3. d4 {[%clk 0:03:00]}  cxd4 {[%clk 0:02:56]} 4. Nxd4 {[%clk 0:03:01]}  Nf6 {[%clk 0:02:56]} 5. Nc3 {[%clk 0:03:01]}  d6 {[%clk 0:02:56]} 6. f3 {[%clk 0:03:01]}  e5 {[%clk 0:02:55]} 7. Nb3 {[%clk 0:02:52]}  Be7 {[%clk 0:02:53]} 8. Be3 {[%clk 0:02:52]}  O-O {[%clk 0:02:49]} 9. Qd2 {[%clk 0:02:48]}  a5 {[%clk 0:02:32]} 10. Bb5 {[%clk 0:02:45]}  Be6 {[%clk 0:02:16]} 11. O-O-O {[%clk 0:02:42]}  Na7 {[%clk 0:02:14]} 12. Bxa7 {[%clk 0:02:40]}  Rxa7 {[%clk 0:02:13]} 13. g4 {[%clk 0:02:41]}  Qb6 {[%clk 0:02:04]} 14. Ba4 {[%clk 0:02:16]}  Rd8 {[%clk 0:01:50]} 15. Kb1 {[%clk 0:02:06]}  d5 {[%clk 0:01:25]} 16. g5 {[%clk 0:02:06]}  dxe4 {[%clk 0:01:24]} 17. gxf6 {[%clk 0:01:59]}  Rxd2 {[%clk 0:01:15]} 18. fxe7 {[%clk 0:01:59]}  Rxd1+ {[%clk 0:01:15]} 19. Rxd1 {[%clk 0:02:00]}  Ra8 {[%clk 0:01:16]} 20. fxe4 {[%clk 0:01:46]}  Qc7 {[%clk 0:01:00]} 21. e8=Q+ {[%clk 0:01:42]}  Rxe8 {[%clk 0:00:58]} 22. Bxe8 {[%clk 0:01:43]}  Qe7 {[%clk 0:00:59]} 23. Bb5 {[%clk 0:01:33]}  g6 {[%clk 0:00:32]} 24. Nxa5 {[%clk 0:01:30]}  Kg7 {[%clk 0:00:19]} 25. a4 {[%clk 0:01:30]}  Qh4 {[%clk 0:00:16]} 26. Nxb7 {[%clk 0:01:28]}  Qxh2 {[%clk 0:00:16]} 27. a5 {[%clk 0:01:28]}  Qf2 {[%clk 0:00:15]} 28. Nd8 {[%clk 0:01:18]}  Bg4 {[%clk 0:00:14]} 29. Rd3 {[%clk 0:01:11]}  h5 {[%clk 0:00:13]} 30. Bd7 {[%clk 0:00:53]}  Qg1+ {[%clk 0:00:11]} 31. Ka2 {[%clk 0:00:53]}  h4 {[%clk 0:00:08]} 32. a6 {[%clk 0:00:48]}  Bxd7 {[%clk 0:00:07]} 33. Rxd7 {[%clk 0:00:48]}  Qb6 {[%clk 0:00:07]} 34. a7 {[%clk 0:00:39]}  Qa6+ {[%clk 0:00:07]} 35. Kb3 {[%clk 0:00:21]}  h3 {[%clk 0:00:07]} 36. Ne2 {[%clk 0:00:12]}  Qb5+ {[%clk 0:00:05]} 37. Kc3 {[%clk 0:00:07]}  h2 {[%clk 0:00:04]} 38. Ng3 {[%clk 0:00:07]}  Qxd7 {[%clk 0:00:04]} 39. a8=Q {[%clk 0:00:07]}  Qd4+ {[%clk 0:00:04]} 40. Kb3 {[%clk 0:00:07]}  Qe3+ {[%clk 0:00:04]} 41. c3 {[%clk 0:00:04]}  Qxg3 {[%clk 0:00:05]} 42. Qb7 {[%clk 0:00:02]}  Qf3 {[%clk 0:00:03]} 43. Qxf7+ {[%clk 0:00:03]}  Qxf7+ {[%clk 0:00:03]} 44. Nxf7 {[%clk 0:00:04]}  Kxf7 {[%clk 0:00:04]} 45. Kc4 {[%clk 0:00:04]}  h1=Q {[%clk 0:00:05]} 46. b4 {[%clk 0:00:05]}  Qxe4+ {[%clk 0:00:05]} 0-1


[Site "https://www.chess.com"]

[Event "Titled Tuesday Blitz May 4 2021"]
[White "Krasilnikov, Evgeni"]
[Black "Chirila, Ioan-Cristian"]
[WhiteFideId "4139739"]
[BlackFideId "1211668"]
[WhiteElo "2357"]
[BlackElo "2445"]
[Result "0-1"]
[Round "02"]
[TimeControl "180+1"]
[Date "2021.05.04"]
[WhiteClock "0:01:54"]
[BlackClock "0:01:06"]

1. e4 {[%clk 0:03:00]}  c5 {[%clk 0:02:57]} 2. c3 {[%clk 0:03:00]}  Nf6 {[%clk 0:02:57]} 3. e5 {[%clk 0:02:59]}  Nd5 {[%clk 0:02:57]} 4. d4 {[%clk 0:02:59]}  cxd4 {[%clk 0:02:57]} 5. Nf3 {[%clk 0:02:59]}  d6 {[%clk 0:02:57]} 6. Bc4 {[%clk 0:02:58]}  e6 {[%clk 0:02:57]} 7. cxd4 {[%clk 0:02:57]}  Nc6 {[%clk 0:02:57]} 8. O-O {[%clk 0:02:57]}  Be7 {[%clk 0:02:57]} 9. Re1 {[%clk 0:02:55]}  O-O {[%clk 0:02:57]} 10. Qe2 {[%clk 0:02:55]}  Bd7 {[%clk 0:02:46]} 11. Qe4 {[%clk 0:02:50]}  Rc8 {[%clk 0:02:37]} 12. Bd3 {[%clk 0:02:35]}  f5 {[%clk 0:02:37]} 13. exf6 {[%clk 0:02:32]}  Nxf6 {[%clk 0:02:37]} 14. Qe2 {[%clk 0:02:23]}  Nb4 {[%clk 0:02:25]} 15. Nc3 {[%clk 0:02:19]}  Nxd3 {[%clk 0:02:19]} 16. Qxd3 {[%clk 0:02:20]}  Qa5 {[%clk 0:02:12]} 17. Ng5 {[%clk 0:02:13]}  e5 {[%clk 0:01:14]} 18. Bd2 {[%clk 0:02:02]}  h6 {[%clk 0:01:07]} 19. Nd5 {[%clk 0:01:54]}  Qxd5 {[%clk 0:01:06]} 0-1


[Site "https://www.chess.com"]

[Event "Titled Tuesday Blitz May 4 2021"]
[White "Kubicka, Anna"]
[Black "Bendayan Claros, Aaron"]
[WhiteFideId "1152254"]
[BlackFideId "3803392"]
[WhiteElo "2010"]
[BlackElo "2166"]
[Result "1-0"]
[Round "02"]
[TimeControl "180+1"]
[Date "2021.05.04"]
[WhiteClock "0:00:17"]
[BlackClock "0:00:09"]

1. e4 {[%clk 0:03:00]}  c6 {[%clk 0:02:53]} 2. d4 {[%clk 0:03:00]}  d5 {[%clk 0:02:54]} 3. exd5 {[%clk 0:03:00]}  cxd5 {[%clk 0:02:55]} 4. Bd3 {[%clk 0:03:00]}  Nc6 {[%clk 0:02:54]} 5. c3 {[%clk 0:03:01]}  Nf6 {[%clk 0:02:54]} 6. h3 {[%clk 0:03:01]}  g6 {[%clk 0:02:54]} 7. Bf4 {[%clk 0:02:57]}  Bg7 {[%clk 0:02:55]} 8. Nd2 {[%clk 0:02:56]}  O-O {[%clk 0:02:54]} 9. Ne2 {[%clk 0:02:53]}  Bf5 {[%clk 0:02:53]} 10. Bxf5 {[%clk 0:02:52]}  gxf5 {[%clk 0:02:54]} 11. Qc2 {[%clk 0:02:51]}  e6 {[%clk 0:02:54]} 12. O-O-O {[%clk 0:02:47]}  Qa5 {[%clk 0:02:51]} 13. Kb1 {[%clk 0:02:46]}  Ne4 {[%clk 0:02:47]} 14. Nxe4 {[%clk 0:02:44]}  fxe4 {[%clk 0:02:46]} 15. f3 {[%clk 0:02:40]}  f5 {[%clk 0:02:41]} 16. Bd6 {[%clk 0:02:28]}  Rf7 {[%clk 0:02:36]} 17. Nf4 {[%clk 0:02:26]}  Re8 {[%clk 0:02:16]} 18. g4 {[%clk 0:02:25]}  Qd8 {[%clk 0:02:10]} 19. Be5 {[%clk 0:01:55]}  Nxe5 {[%clk 0:01:55]} 20. dxe5 {[%clk 0:01:56]}  Bxe5 {[%clk 0:01:56]} 21. Nh5 {[%clk 0:01:49]}  Qh4 {[%clk 0:01:44]} 22. Qe2 {[%clk 0:01:19]}  a6 {[%clk 0:01:31]} 23. Rhg1 {[%clk 0:01:13]}  Kh8 {[%clk 0:01:29]} 24. f4 {[%clk 0:01:01]}  fxg4 {[%clk 0:01:00]} 25. hxg4 {[%clk 0:01:01]}  Bxf4 {[%clk 0:00:56]} 26. Nxf4 {[%clk 0:00:44]}  Rxf4 {[%clk 0:00:53]} 27. g5 {[%clk 0:00:44]}  Rf2 {[%clk 0:00:32]} 28. Qe3 {[%clk 0:00:42]}  Qh2 {[%clk 0:00:28]} 29. Qb6 {[%clk 0:00:33]}  Kg8 {[%clk 0:00:18]} 30. g6 {[%clk 0:00:31]}  h5 {[%clk 0:00:16]} 31. Qxb7 {[%clk 0:00:30]}  Rxb2+ {[%clk 0:00:12]} 32. Qxb2 {[%clk 0:00:30]}  Rb8 {[%clk 0:00:12]} 33. Qxb8+ {[%clk 0:00:24]}  Qxb8+ {[%clk 0:00:13]} 34. Ka1 {[%clk 0:00:21]}  Qe5 {[%clk 0:00:12]} 35. Kb2 {[%clk 0:00:17]}  h4 {[%clk 0:00:11]} 36. g7 {[%clk 0:00:16]}  h3 {[%clk 0:00:11]} 37. Rdf1 {[%clk 0:00:16]}  Qb8+ {[%clk 0:00:08]} 38. Kc2 {[%clk 0:00:16]}  h2 {[%clk 0:00:08]} 39. Rf8+ {[%clk 0:00:14]}  Qxf8 {[%clk 0:00:08]} 40. gxf8=Q+ {[%clk 0:00:15]}  Kxf8 {[%clk 0:00:09]} 41. Rh1 {[%clk 0:00:16]}  e3 {[%clk 0:00:09]} 42. Rxh2 {[%clk 0:00:16]}  e2 {[%clk 0:00:09]} 43. Rxe2 {[%clk 0:00:16]}  Ke7 {[%clk 0:00:09]} 44. Kd3 {[%clk 0:00:16]}  Kd6 {[%clk 0:00:09]} 45. Kd4 {[%clk 0:00:17]} 1-0


[Site "https://www.chess.com"]